[Event "*** Titled Tuesday Blitz"]
[Site "Chess.com"]
[Date "2020.04.14"]
[Round "6"]
[White "Valuebet2000"]
[Black "kirillshevchenko"]
[Result "0-1"]
[WhiteElo "2552"]
[BlackElo "2853"]
[TimeControl "180+1"]
[EndTime "11:03:28 PDT"]
[Termination "kirillshevchenko won by resignation"]

1. d4 {[%clk 0:03:00.9]} 1... Nf6 {[%clk 0:02:58.6]} 2. c4 {[%clk 0:02:59.5]}
2... g6 {[%clk 0:02:58.6]} 3. Nc3 {[%clk 0:02:59.3]} 3... d5 {[%clk 0:02:59.1]}
4. cxd5 {[%clk 0:02:59.2]} 4... Nxd5 {[%clk 0:03:00]} 5. Bd2 {[%clk 0:02:59]}
5... Bg7 {[%clk 0:02:59.1]} 6. e4 {[%clk 0:02:57.3]} 6... Nxc3 {[%clk 0:02:59]}
7. Bxc3 {[%clk 0:02:57.5]} 7... O-O {[%clk 0:02:59.4]} 8. Nf3 {[%clk 0:02:56.7]}
8... b6 {[%clk 0:02:45.8]} 9. Bd3 {[%clk 0:02:51.2]} 9... Bb7 {[%clk 0:02:45.5]}
10. Qe2 {[%clk 0:02:51.3]} 10... e6 {[%clk 0:02:42.3]} 11. O-O {[%clk
0:02:49.7]} 11... Nd7 {[%clk 0:02:42.1]} 12. Rfd1 {[%clk 0:02:45.1]} 12... Qe7
{[%clk 0:02:41.8]} 13. Rac1 {[%clk 0:02:44.9]} 13... Rac8 {[%clk 0:02:40.3]} 14.
Ba6 {[%clk 0:02:43.5]} 14... Bxa6 {[%clk 0:02:26.2]} 15. Qxa6 {[%clk 0:02:44.4]}
15... c5 {[%clk 0:02:18.4]} 16. d5 {[%clk 0:02:20.6]} 16... exd5 {[%clk
0:02:02]} 17. Bxg7 {[%clk 0:02:17.6]} 17... Kxg7 {[%clk 0:02:01.5]} 18. exd5
{[%clk 0:02:17.8]} 18... Nb8 {[%clk 0:01:35.1]} 19. Qa3 {[%clk 0:02:09.8]} 19...
Rfd8 {[%clk 0:01:33.8]} 20. Re1 {[%clk 0:01:47.1]} 20... Qf6 {[%clk 0:01:29.6]}
21. Qxa7 {[%clk 0:01:39.9]} 21... Rxd5 {[%clk 0:01:26.7]} 22. b3 {[%clk
0:01:33.9]} 22... Rd7 {[%clk 0:01:20.8]} 23. Qa8 {[%clk 0:01:12.3]} 23... Rcd8
{[%clk 0:01:13.5]} 24. Qe4 {[%clk 0:00:48]} 24... Nc6 {[%clk 0:01:13.3]} 25. h3
{[%clk 0:00:41.1]} 25... Nb4 {[%clk 0:01:04.9]} 26. Re2 {[%clk 0:00:30]} 26...
Nd3 {[%clk 0:01:05.1]} 27. Rb1 {[%clk 0:00:23.2]} 27... Nf4 {[%clk 0:01:00.3]}
28. Ree1 {[%clk 0:00:20.6]} 28... Rd3 {[%clk 0:00:57]} 29. Re3 {[%clk
0:00:10.8]} 29... Rxe3 {[%clk 0:00:47.8]} 30. Qxe3 {[%clk 0:00:10.2]} 30... Rd3
{[%clk 0:00:47.4]} 31. Qe4 {[%clk 0:00:09.4]} 31... Nxh3+ {[%clk 0:00:47.2]} 32.
gxh3 {[%clk 0:00:09.7]} 32... Rxf3 {[%clk 0:00:47]} 33. Rf1 {[%clk 0:00:06.4]}
33... Rxh3 {[%clk 0:00:46.2]} 34. Kg2 {[%clk 0:00:06.7]} 34... Rh4 {[%clk
0:00:44.9]} 35. Qe3 {[%clk 0:00:03.6]} 35... Rg4+ {[%clk 0:00:44.3]} 36. Kh2
{[%clk 0:00:04.1]} 36... Qf5 {[%clk 0:00:36.7]} 37. Qc3+ {[%clk 0:00:01.9]}
37... Kg8 {[%clk 0:00:35.6]} 38. Qe3 {[%clk 0:00:01.8]} 38... Qh5+ {[%clk
0:00:35.2]} 0-1

[Event "*** Titled Tuesday Blitz"]
[Site "Chess.com"]
[Date "2020.04.14"]
[Round "6"]
[White "talaicito"]
[Black "Efremov_Vlad"]
[Result "0-1"]
[WhiteElo "2286"]
[BlackElo "2155"]
[TimeControl "180+1"]
[EndTime "11:03:28 PDT"]
[Termination "Efremov_Vlad won on time"]

1. d4 {[%clk 0:03:00.9]} 1... d5 {[%clk 0:02:58.8]} 2. Nc3 {[%clk 0:02:59.9]}
2... Nf6 {[%clk 0:02:57.6]} 3. Bf4 {[%clk 0:02:59.7]} 3... c5 {[%clk 0:02:56.5]}
4. e3 {[%clk 0:02:58.8]} 4... cxd4 {[%clk 0:02:56.1]} 5. Nb5 {[%clk 0:02:54.2]}
5... Qa5+ {[%clk 0:02:32.9]} 6. c3 {[%clk 0:02:31.5]} 6... dxc3 {[%clk
0:02:25.5]} 7. bxc3 {[%clk 0:02:32.4]} 7... Na6 {[%clk 0:02:21.3]} 8. Nf3 {[%clk
0:02:16.9]} 8... Bd7 {[%clk 0:02:20.7]} 9. Qb3 {[%clk 0:02:12.8]} 9... Rc8
{[%clk 0:02:12.4]} 10. Ne5 {[%clk 0:01:39.1]} 10... Nc5 {[%clk 0:02:10.7]} 11.
Qb4 {[%clk 0:01:35.6]} 11... Qxb4 {[%clk 0:01:56.4]} 12. cxb4 {[%clk 0:01:36.5]}
12... Ne6 {[%clk 0:01:25.2]} 13. Nxa7 {[%clk 0:01:00.1]} 13... Ra8 {[%clk
0:00:58.5]} 14. Nb5 {[%clk 0:00:58]} 14... g5 {[%clk 0:00:58.4]} 15. Bxg5 {[%clk
0:00:46.3]} 15... Bg7 {[%clk 0:00:55.5]} 16. Rc1 {[%clk 0:00:16.1]} 16... O-O
{[%clk 0:00:54.1]} 17. Bxf6 {[%clk 0:00:15.5]} 17... Bxb5 {[%clk 0:00:51.9]} 18.
Bxg7 {[%clk 0:00:15.2]} 18... Kxg7 {[%clk 0:00:33.9]} 19. Bxb5 {[%clk
0:00:14.3]} 19... Rxa2 {[%clk 0:00:33.9]} 20. O-O {[%clk 0:00:14.4]} 20... Rfa8
{[%clk 0:00:33.1]} 21. Bd3 {[%clk 0:00:13]} 21... Rd2 {[%clk 0:00:32.4]} 22.
Rfd1 {[%clk 0:00:12.4]} 22... Raa2 {[%clk 0:00:30.3]} 23. Rxd2 {[%clk
0:00:11.1]} 23... Rxd2 {[%clk 0:00:30.9]} 24. Bf1 {[%clk 0:00:08]} 24... f6
{[%clk 0:00:29.7]} 25. Nf3 {[%clk 0:00:07.6]} 25... Ra2 {[%clk 0:00:27.5]} 26.
b5 {[%clk 0:00:04.9]} 26... Rb2 {[%clk 0:00:25.5]} 27. Rd1 {[%clk 0:00:04]}
27... Nc7 {[%clk 0:00:23.1]} 28. Nd4 {[%clk 0:00:03.2]} 28... e6 {[%clk
0:00:21.5]} 29. f4 {[%clk 0:00:01.4]} 29... Kf7 {[%clk 0:00:20.5]} 30. h3 {[%clk
0:00:01.6]} 30... h5 {[%clk 0:00:19.7]} 31. Be2 {[%clk 0:00:01.4]} 31... e5
{[%clk 0:00:16.5]} 32. Bxh5+ {[%clk 0:00:01.1]} 32... Ke7 {[%clk 0:00:16]} 0-1

[Event "*** Titled Tuesday Blitz"]
[Site "Chess.com"]
[Date "2020.04.14"]
[Round "6"]
[White "Renegade_Hitman"]
[Black "kreonx"]
[Result "0-1"]
[WhiteElo "1922"]
[BlackElo "2238"]
[TimeControl "180+1"]
[EndTime "11:03:29 PDT"]
[Termination "kreonx won on time"]

1. e4 {[%clk 0:03:00.9]} 1... c6 {[%clk 0:03:00]} 2. d4 {[%clk 0:03:00.2]} 2...
d5 {[%clk 0:03:00.5]} 3. Nc3 {[%clk 0:02:59.6]} 3... g6 {[%clk 0:02:59.5]} 4.
Nf3 {[%clk 0:02:48.6]} 4... Bg7 {[%clk 0:02:59.2]} 5. Be2 {[%clk 0:02:45.1]}
5... Bg4 {[%clk 0:02:54.7]} 6. e5 {[%clk 0:02:38.9]} 6... e6 {[%clk 0:02:51.9]}
7. O-O {[%clk 0:02:34.3]} 7... Ne7 {[%clk 0:02:51]} 8. h3 {[%clk 0:02:33.7]}
8... Bxf3 {[%clk 0:02:50]} 9. Bxf3 {[%clk 0:02:34.6]} 9... O-O {[%clk
0:02:50.1]} 10. Bg5 {[%clk 0:02:31.8]} 10... Nd7 {[%clk 0:02:47.9]} 11. Qd2
{[%clk 0:02:22.5]} 11... Re8 {[%clk 0:02:42.3]} 12. a4 {[%clk 0:01:46.2]} 12...
a6 {[%clk 0:02:38.1]} 13. a5 {[%clk 0:01:44.1]} 13... Rc8 {[%clk 0:02:34.5]} 14.
Na4 {[%clk 0:01:43.7]} 14... c5 {[%clk 0:02:32.6]} 15. Nxc5 {[%clk 0:01:41.2]}
15... Nxc5 {[%clk 0:02:31.2]} 16. dxc5 {[%clk 0:01:41.7]} 16... Bxe5 {[%clk
0:02:30.2]} 17. Qb4 {[%clk 0:01:36.5]} 17... Qc7 {[%clk 0:02:21.7]} 18. c3
{[%clk 0:01:15.3]} 18... Nc6 {[%clk 0:01:31.2]} 19. Qb6 {[%clk 0:00:53.7]} 19...
Nb8 {[%clk 0:01:23.1]} 20. Ra3 {[%clk 0:00:32.8]} 20... Qxc5 {[%clk 0:00:50.1]}
21. Qxb7 {[%clk 0:00:24.4]} 21... Rc7 {[%clk 0:00:40.9]} 22. Qb3 {[%clk
0:00:22.2]} 22... Nc6 {[%clk 0:00:39.2]} 23. Be3 {[%clk 0:00:14.7]} 23... d4
{[%clk 0:00:23.1]} 24. Bxc6 {[%clk 0:00:13.9]} 24... Rxc6 {[%clk 0:00:21.7]} 25.
Bxd4 {[%clk 0:00:13.1]} 25... Bxd4 {[%clk 0:00:21.4]} 26. cxd4 {[%clk 0:00:14]}
26... Qxd4 {[%clk 0:00:21.5]} 27. Rd1 {[%clk 0:00:07]} 27... Qa7 {[%clk
0:00:20.7]} 28. Qe3 {[%clk 0:00:03.4]} 28... Qb7 {[%clk 0:00:19.3]} 29. Rb3
{[%clk 0:00:02.6]} 29... Qc7 {[%clk 0:00:19.4]} 30. Rb6 {[%clk 0:00:01.7]} 30...
Rb8 {[%clk 0:00:17]} 0-1

[Event "*** Titled Tuesday Blitz"]
[Site "Chess.com"]
[Date "2020.04.14"]
[Round "6"]
[White "NewBornNow"]
[Black "Msb2"]
[Result "1-0"]
[WhiteElo "2671"]
[BlackElo "2885"]
[TimeControl "180+1"]
[EndTime "11:03:31 PDT"]
[Termination "NewBornNow won by resignation"]

1. e4 {[%clk 0:03:00.9]} 1... e6 {[%clk 0:02:57.2]} 2. d3 {[%clk 0:03:00]} 2...
d5 {[%clk 0:02:57.4]} 3. Qe2 {[%clk 0:03:00]} 3... Nc6 {[%clk 0:02:57.1]} 4. Nf3
{[%clk 0:02:59.8]} 4... e5 {[%clk 0:02:57.3]} 5. exd5 {[%clk 0:02:59.4]} 5...
Qxd5 {[%clk 0:02:57.6]} 6. Nc3 {[%clk 0:02:59.4]} 6... Qa5 {[%clk 0:02:57.4]} 7.
Bd2 {[%clk 0:02:54.5]} 7... Bg4 {[%clk 0:02:40.2]} 8. Qd1 {[%clk 0:02:52.7]}
8... O-O-O {[%clk 0:02:37.4]} 9. Be2 {[%clk 0:02:43.7]} 9... f5 {[%clk
0:02:35.3]} 10. O-O {[%clk 0:02:38.3]} 10... Nf6 {[%clk 0:02:34.1]} 11. a3
{[%clk 0:02:26.1]} 11... Qc5 {[%clk 0:02:31.4]} 12. b4 {[%clk 0:02:22.1]} 12...
Qd6 {[%clk 0:02:31]} 13. h3 {[%clk 0:02:15.1]} 13... Bh5 {[%clk 0:02:18.6]} 14.
Re1 {[%clk 0:02:04.3]} 14... e4 {[%clk 0:02:14.6]} 15. Nh4 {[%clk 0:02:00.8]}
15... Bxe2 {[%clk 0:02:10.5]} 16. Qxe2 {[%clk 0:01:55.1]} 16... Nd4 {[%clk
0:02:09.1]} 17. Qd1 {[%clk 0:01:51.8]} 17... exd3 {[%clk 0:02:06.1]} 18. cxd3
{[%clk 0:01:50.9]} 18... g6 {[%clk 0:02:06.4]} 19. Rc1 {[%clk 0:01:44.8]} 19...
Bg7 {[%clk 0:01:56.5]} 20. Be3 {[%clk 0:01:43.7]} 20... Kb8 {[%clk 0:01:51.7]}
21. Qa4 {[%clk 0:01:42.9]} 21... Qd7 {[%clk 0:01:32.7]} 22. b5 {[%clk
0:01:38.3]} 22... Rhe8 {[%clk 0:01:13.8]} 23. Nf3 {[%clk 0:01:22.8]} 23... Nxf3+
{[%clk 0:00:55.6]} 24. gxf3 {[%clk 0:01:22.5]} 24... b6 {[%clk 0:00:56.2]} 25.
Bf4 {[%clk 0:01:06.9]} 25... Nh5 {[%clk 0:00:54.6]} 26. Rxe8 {[%clk 0:00:54.9]}
26... Rxe8 {[%clk 0:00:48.8]} 27. Nd5 {[%clk 0:00:45.7]} 27... Nxf4 {[%clk
0:00:19.8]} 28. Rxc7 {[%clk 0:00:43.7]} 28... Re1+ {[%clk 0:00:17.5]} 29. Kh2
{[%clk 0:00:42.1]} 29... Qxc7 {[%clk 0:00:13.3]} 30. Nxc7 {[%clk 0:00:40.7]}
30... Be5 {[%clk 0:00:13.8]} 31. Na6+ {[%clk 0:00:36.3]} 31... Kb7 {[%clk
0:00:13.6]} 32. Qc4 {[%clk 0:00:32.3]} 32... Rc1 {[%clk 0:00:04]} 33. Qf7+
{[%clk 0:00:31]} 33... Kc8 {[%clk 0:00:03.6]} 34. Qe8+ {[%clk 0:00:29.6]} 34...
Kb7 {[%clk 0:00:03.9]} 35. Qxe5 {[%clk 0:00:26.8]} 35... Nxd3 {[%clk 0:00:04.2]}
36. Qd5+ {[%clk 0:00:25.8]} 1-0

[Event "*** Titled Tuesday Blitz"]
[Site "Chess.com"]
[Date "2020.04.14"]
[Round "6"]
[White "viditchess"]
[Black "Bykov_Egor"]
[Result "0-1"]
[WhiteElo "2928"]
[BlackElo "2572"]
[TimeControl "180+1"]
[EndTime "11:03:31 PDT"]
[Termination "Bykov_Egor won by resignation"]

1. Nf3 {[%clk 0:03:00.9]} 1... Nf6 {[%clk 0:03:00.1]} 2. g3 {[%clk 0:03:00.9]}
2... d5 {[%clk 0:03:00.3]} 3. Bg2 {[%clk 0:03:01.1]} 3... c6 {[%clk 0:03:00.4]}
4. O-O {[%clk 0:03:01.4]} 4... Bg4 {[%clk 0:03:01]} 5. d3 {[%clk 0:03:01.5]}
5... Nbd7 {[%clk 0:03:01.2]} 6. Qe1 {[%clk 0:03:01.9]} 6... e5 {[%clk
0:02:58.2]} 7. e4 {[%clk 0:03:00.7]} 7... dxe4 {[%clk 0:02:56.9]} 8. dxe4 {[%clk
0:03:00.6]} 8... Bc5 {[%clk 0:02:57.4]} 9. Nbd2 {[%clk 0:02:58.5]} 9... O-O
{[%clk 0:02:56.7]} 10. h3 {[%clk 0:02:59.1]} 10... Bh5 {[%clk 0:02:50.1]} 11. a4
{[%clk 0:02:59]} 11... a5 {[%clk 0:02:49.7]} 12. Nc4 {[%clk 0:02:57.1]} 12...
Qe7 {[%clk 0:02:43.5]} 13. Bd2 {[%clk 0:02:49.5]} 13... b6 {[%clk 0:02:14.8]}
14. b3 {[%clk 0:02:49.3]} 14... Bb4 {[%clk 0:02:11.3]} 15. Bxb4 {[%clk
0:02:33.4]} 15... axb4 {[%clk 0:02:11.3]} 16. Nh4 {[%clk 0:02:31.3]} 16... Bg6
{[%clk 0:02:01.1]} 17. Rd1 {[%clk 0:02:13]} 17... b5 {[%clk 0:01:52.5]} 18. axb5
{[%clk 0:02:12.7]} 18... cxb5 {[%clk 0:01:52.9]} 19. Nd6 {[%clk 0:02:12.5]}
19... Ra2 {[%clk 0:01:46.6]} 20. Qd2 {[%clk 0:01:20.4]} 20... Nc5 {[%clk
0:01:33.1]} 21. Nhf5 {[%clk 0:01:09.2]} 21... Bxf5 {[%clk 0:01:28.1]} 22. Nxf5
{[%clk 0:01:10.1]} 22... Qc7 {[%clk 0:01:21.7]} 23. Nxg7 {[%clk 0:00:36.8]}
23... Nfxe4 {[%clk 0:01:04.2]} 24. Bxe4 {[%clk 0:00:35.9]} 24... Nxe4 {[%clk
0:01:04.5]} 25. Qh6 {[%clk 0:00:36.2]} 25... Qe7 {[%clk 0:00:33.8]} 26. Nh5
{[%clk 0:00:19.1]} 26... Qg5 {[%clk 0:00:33.6]} 27. Qxg5+ {[%clk 0:00:17.4]}
27... Nxg5 {[%clk 0:00:34.5]} 28. h4 {[%clk 0:00:14.4]} 28... Nf3+ {[%clk
0:00:33.5]} 29. Kg2 {[%clk 0:00:14.4]} 29... Nd4 {[%clk 0:00:33.9]} 30. Rfe1
{[%clk 0:00:13.3]} 30... f6 {[%clk 0:00:32]} 31. f4 {[%clk 0:00:12.5]} 31...
Nxc2 {[%clk 0:00:30.2]} 32. Re2 {[%clk 0:00:05.6]} 32... Ne3+ {[%clk 0:00:30.3]}
33. Kf3 {[%clk 0:00:06]} 33... Rxe2 {[%clk 0:00:30.8]} 34. Rd7 {[%clk
0:00:06.6]} 34... Re1 {[%clk 0:00:26.8]} 0-1

[Event "*** Titled Tuesday Blitz"]
[Site "Chess.com"]
[Date "2020.04.14"]
[Round "6"]
[White "ZiggyStardust64"]
[Black "axvesik"]
[Result "1/2-1/2"]
[WhiteElo "2597"]
[BlackElo "2451"]
[TimeControl "180+1"]
[EndTime "11:03:31 PDT"]
[Termination "Game drawn by repetition"]

1. d4 {[%clk 0:03:00.9]} 1... e6 {[%clk 0:02:59.8]} 2. c4 {[%clk 0:02:57.7]}
2... Nf6 {[%clk 0:02:59.6]} 3. Nc3 {[%clk 0:02:57.6]} 3... Bb4 {[%clk
0:02:59.1]} 4. Qc2 {[%clk 0:02:58.3]} 4... O-O {[%clk 0:02:58.7]} 5. e4 {[%clk
0:02:58.5]} 5... d5 {[%clk 0:02:58.4]} 6. e5 {[%clk 0:02:58.9]} 6... Ne4 {[%clk
0:02:57.8]} 7. Bd3 {[%clk 0:02:59.2]} 7... c5 {[%clk 0:02:56.2]} 8. Ne2 {[%clk
0:02:59.4]} 8... cxd4 {[%clk 0:02:52.4]} 9. Nxd4 {[%clk 0:03:00.3]} 9... Nd7
{[%clk 0:02:52.7]} 10. Bf4 {[%clk 0:03:00.5]} 10... Ndc5 {[%clk 0:02:50.5]} 11.
O-O {[%clk 0:03:00.7]} 11... Bxc3 {[%clk 0:02:45.6]} 12. bxc3 {[%clk 0:03:00.6]}
12... Bd7 {[%clk 0:02:46.3]} 13. Be2 {[%clk 0:02:32.1]} 13... Na4 {[%clk
0:02:30.7]} 14. cxd5 {[%clk 0:02:26]} 14... exd5 {[%clk 0:02:29.7]} 15. c4
{[%clk 0:02:20.3]} 15... Rc8 {[%clk 0:01:58.7]} 16. Bd3 {[%clk 0:01:37.7]} 16...
g6 {[%clk 0:01:39.2]} 17. Bxe4 {[%clk 0:01:27.7]} 17... dxe4 {[%clk 0:01:38.6]}
18. e6 {[%clk 0:01:17.8]} 18... fxe6 {[%clk 0:01:32.9]} 19. Bd6 {[%clk
0:00:58.9]} 19... Rf7 {[%clk 0:01:19.6]} 20. Rad1 {[%clk 0:00:48.3]} 20... Qb6
{[%clk 0:01:08.1]} 21. Be5 {[%clk 0:00:39]} 21... Qc5 {[%clk 0:01:03.9]} 22.
Qxe4 {[%clk 0:00:38.7]} 22... Nc3 {[%clk 0:00:54.3]} 23. Qe3 {[%clk 0:00:29.6]}
23... Nxd1 {[%clk 0:00:53.8]} 24. Rxd1 {[%clk 0:00:30.5]} 24... Qxc4 {[%clk
0:00:52.7]} 25. h4 {[%clk 0:00:22.2]} 25... Ba4 {[%clk 0:00:43.1]} 26. Re1
{[%clk 0:00:21.7]} 26... Qc3 {[%clk 0:00:41.4]} 27. Qe4 {[%clk 0:00:18.4]} 27...
Bc2 {[%clk 0:00:36.1]} 28. Qe2 {[%clk 0:00:15.4]} 28... Bd3 {[%clk 0:00:29.5]}
29. Qe3 {[%clk 0:00:14.7]} 29... Ba6 {[%clk 0:00:25.3]} 30. Qe4 {[%clk
0:00:12.3]} 30... Qd2 {[%clk 0:00:20.9]} 31. Nf3 {[%clk 0:00:07.4]} 31... Qd5
{[%clk 0:00:19]} 32. Qg4 {[%clk 0:00:06.1]} 32... Rc4 {[%clk 0:00:18.5]} 33. Qg5
{[%clk 0:00:05.5]} 33... Rf5 {[%clk 0:00:16.8]} 34. Qe7 {[%clk 0:00:05.1]} 34...
Rf7 {[%clk 0:00:13.2]} 35. Qe8+ {[%clk 0:00:05]} 35... Rf8 {[%clk 0:00:13.6]}
36. Qe7 {[%clk 0:00:05.6]} 36... Rf7 {[%clk 0:00:14]} 37. Qe8+ {[%clk
0:00:06.2]} 37... Rf8 {[%clk 0:00:14.6]} 38. Qe7 {[%clk 0:00:06.5]} 38... Rf7
{[%clk 0:00:15.1]} 1/2-1/2

[Event "*** Titled Tuesday Blitz"]
[Site "Chess.com"]
[Date "2020.04.14"]
[Round "6"]
[White "eljanov"]
[Black "Schandenfreude"]
[Result "1-0"]
[WhiteElo "2804"]
[BlackElo "2489"]
[TimeControl "180+1"]
[EndTime "11:03:32 PDT"]
[Termination "eljanov won on time"]

1. Nf3 {[%clk 0:03:00.9]} 1... Nf6 {[%clk 0:02:53.5]} 2. c4 {[%clk 0:03:00.4]}
2... e6 {[%clk 0:02:52.7]} 3. g3 {[%clk 0:02:59.7]} 3... d5 {[%clk 0:02:41.9]}
4. Bg2 {[%clk 0:02:58.9]} 4... Be7 {[%clk 0:02:40.3]} 5. O-O {[%clk 0:02:57.7]}
5... O-O {[%clk 0:02:40.3]} 6. d4 {[%clk 0:02:57.4]} 6... c6 {[%clk 0:02:39.2]}
7. Qc2 {[%clk 0:02:54.7]} 7... b6 {[%clk 0:02:38.5]} 8. Nbd2 {[%clk 0:02:53.8]}
8... Bb7 {[%clk 0:02:38]} 9. Rd1 {[%clk 0:02:52.5]} 9... Na6 {[%clk 0:02:36.5]}
10. a3 {[%clk 0:02:48.5]} 10... Rc8 {[%clk 0:02:30.8]} 11. b4 {[%clk 0:02:43.8]}
11... c5 {[%clk 0:02:15.2]} 12. dxc5 {[%clk 0:02:40.7]} 12... bxc5 {[%clk
0:02:14.3]} 13. b5 {[%clk 0:02:41.3]} 13... Nc7 {[%clk 0:02:13.1]} 14. a4 {[%clk
0:02:37.1]} 14... d4 {[%clk 0:02:00.2]} 15. Ne5 {[%clk 0:02:28]} 15... Bxg2
{[%clk 0:01:53.4]} 16. Kxg2 {[%clk 0:02:28.3]} 16... a6 {[%clk 0:01:13.6]} 17.
b6 {[%clk 0:02:09.5]} 17... Nce8 {[%clk 0:01:06.1]} 18. a5 {[%clk 0:02:08.3]}
18... Nd7 {[%clk 0:00:59.8]} 19. Ndf3 {[%clk 0:02:03]} 19... Nxe5 {[%clk
0:00:59.6]} 20. Nxe5 {[%clk 0:02:03.1]} 20... Bf6 {[%clk 0:00:58]} 21. Nf3
{[%clk 0:01:48]} 21... Nd6 {[%clk 0:00:56.3]} 22. Bf4 {[%clk 0:01:42.5]} 22...
Nb7 {[%clk 0:00:51.8]} 23. Qe4 {[%clk 0:01:38.8]} 23... Qd7 {[%clk 0:00:49.7]}
24. e3 {[%clk 0:01:35.8]} 24... Qc6 {[%clk 0:00:36.3]} 25. Qxc6 {[%clk 0:01:31]}
25... Rxc6 {[%clk 0:00:37.2]} 26. Be5 {[%clk 0:01:27.4]} 26... dxe3 {[%clk
0:00:24.2]} 27. Rd7 {[%clk 0:01:23.3]} 27... Nxa5 {[%clk 0:00:17.1]} 28. Rxa5
{[%clk 0:01:20.4]} 28... Rxb6 {[%clk 0:00:16.3]} 29. fxe3 {[%clk 0:01:17.2]}
29... Bxe5 {[%clk 0:00:12.2]} 30. Nxe5 {[%clk 0:01:16.3]} 30... Rb2+ {[%clk
0:00:13.1]} 31. Kf3 {[%clk 0:01:16.3]} 31... Rxh2 {[%clk 0:00:11.7]} 32. Rxc5
{[%clk 0:01:14.1]} 32... h5 {[%clk 0:00:10.4]} 33. Rcc7 {[%clk 0:01:12.7]} 33...
h4 {[%clk 0:00:10.5]} 34. gxh4 {[%clk 0:01:03.7]} 34... Rxh4 {[%clk 0:00:09.9]}
35. c5 {[%clk 0:01:03.7]} 35... Rh5 {[%clk 0:00:07.6]} 36. Nc6 {[%clk
0:00:52.4]} 36... Rh3+ {[%clk 0:00:03]} 37. Ke2 {[%clk 0:00:50.6]} 37... Rh2+
{[%clk 0:00:02.4]} 38. Kd3 {[%clk 0:00:50.9]} 38... a5 {[%clk 0:00:01.9]} 39.
Nxa5 {[%clk 0:00:49.5]} 39... Rh5 {[%clk 0:00:01.2]} 40. Nc6 {[%clk 0:00:48.4]}
40... Ra8 {[%clk 0:00:01.1]} 41. Rd8+ {[%clk 0:00:42]} 41... Rxd8+ {[%clk
0:00:01.2]} 42. Nxd8 {[%clk 0:00:42.9]} 42... Kh7 {[%clk 0:00:01.8]} 43. Nxf7
{[%clk 0:00:42.2]} 43... Rf5 {[%clk 0:00:01.8]} 44. c6 {[%clk 0:00:41.5]} 1-0

[Event "*** Titled Tuesday Blitz"]
[Site "Chess.com"]
[Date "2020.04.14"]
[Round "6"]
[White "stefan_95"]
[Black "Eltarolo"]
[Result "1-0"]
[WhiteElo "2546"]
[BlackElo "2339"]
[TimeControl "180+1"]
[EndTime "11:03:32 PDT"]
[Termination "stefan_95 won by checkmate"]

1. d4 {[%clk 0:03:00.9]} 1... Nf6 {[%clk 0:02:59.8]} 2. Nf3 {[%clk 0:03:00.4]}
2... g6 {[%clk 0:03:00.1]} 3. Bf4 {[%clk 0:02:59.8]} 3... Bg7 {[%clk 0:03:00.5]}
4. e3 {[%clk 0:03:00]} 4... O-O {[%clk 0:03:00.4]} 5. Be2 {[%clk 0:03:00.3]}
5... d6 {[%clk 0:03:00.8]} 6. O-O {[%clk 0:03:00.7]} 6... Nbd7 {[%clk 0:03:00]}
7. c4 {[%clk 0:03:00.1]} 7... Re8 {[%clk 0:03:00]} 8. h3 {[%clk 0:02:59.6]} 8...
e5 {[%clk 0:03:00.1]} 9. dxe5 {[%clk 0:02:59.8]} 9... dxe5 {[%clk 0:02:54.9]}
10. Nxe5 {[%clk 0:02:59.2]} 10... Qe7 {[%clk 0:02:39.4]} 11. Nxd7 {[%clk
0:02:56.6]} 11... Bxd7 {[%clk 0:02:36.2]} 12. Nc3 {[%clk 0:02:55.7]} 12... Bc6
{[%clk 0:02:33.3]} 13. Bf3 {[%clk 0:02:51.3]} 13... Ne4 {[%clk 0:02:25.9]} 14.
Nxe4 {[%clk 0:02:48.6]} 14... Bxe4 {[%clk 0:02:26.8]} 15. Bxe4 {[%clk 0:02:49]}
15... Qxe4 {[%clk 0:02:27.2]} 16. Qb3 {[%clk 0:02:49.6]} 16... b6 {[%clk
0:02:23.7]} 17. Rad1 {[%clk 0:02:47.5]} 17... Rad8 {[%clk 0:02:20.1]} 18. Rxd8
{[%clk 0:02:17.5]} 18... Rxd8 {[%clk 0:02:21]} 19. Rd1 {[%clk 0:02:17.3]} 19...
Rxd1+ {[%clk 0:02:03.9]} 20. Qxd1 {[%clk 0:02:18.2]} 20... Qxc4 {[%clk
0:01:36.4]} 21. b3 {[%clk 0:02:13.9]} 21... Qc5 {[%clk 0:01:19.2]} 22. Qd8+
{[%clk 0:02:12.4]} 22... Bf8 {[%clk 0:01:12.6]} 23. Qxc7 {[%clk 0:02:11.5]}
23... Qxc7 {[%clk 0:01:02]} 24. Bxc7 {[%clk 0:02:08.8]} 24... b5 {[%clk
0:01:01.8]} 25. Kf1 {[%clk 0:01:39.3]} 25... Bb4 {[%clk 0:00:51.9]} 26. Ke2
{[%clk 0:01:30.7]} 26... Kf8 {[%clk 0:00:52]} 27. Kd3 {[%clk 0:01:30.5]} 27...
Ke7 {[%clk 0:00:47]} 28. Be5 {[%clk 0:01:29.7]} 28... h5 {[%clk 0:00:41.5]} 29.
Bc3 {[%clk 0:01:29.1]} 29... Bd6 {[%clk 0:00:33.8]} 30. e4 {[%clk 0:01:27.6]}
30... a6 {[%clk 0:00:29]} 31. e5 {[%clk 0:01:25.2]} 31... Bc5 {[%clk 0:00:24.7]}
32. f4 {[%clk 0:01:24.8]} 32... Ke6 {[%clk 0:00:24.2]} 33. Ke4 {[%clk
0:01:24.9]} 33... Bf2 {[%clk 0:00:19.1]} 34. g4 {[%clk 0:01:24.2]} 34... hxg4
{[%clk 0:00:19.3]} 35. hxg4 {[%clk 0:01:25.1]} 35... Bg1 {[%clk 0:00:18.4]} 36.
f5+ {[%clk 0:01:25.3]} 36... gxf5+ {[%clk 0:00:18.8]} 37. gxf5+ {[%clk
0:01:26.2]} 37... Kd7 {[%clk 0:00:18.6]} 38. Kd5 {[%clk 0:01:26.5]} 38... Bf2
{[%clk 0:00:16.9]} 39. e6+ {[%clk 0:01:26.1]} 39... fxe6+ {[%clk 0:00:16.8]} 40.
fxe6+ {[%clk 0:01:27]} 40... Kc7 {[%clk 0:00:14]} 41. Be5+ {[%clk 0:01:08.6]}
41... Kd8 {[%clk 0:00:14]} 42. Bd6 {[%clk 0:01:08.1]} 42... a5 {[%clk
0:00:11.8]} 43. Kc6 {[%clk 0:01:07.9]} 43... a4 {[%clk 0:00:12.2]} 44. Kxb5
{[%clk 0:01:07.3]} 44... axb3 {[%clk 0:00:12]} 45. axb3 {[%clk 0:01:05.9]} 45...
Kc8 {[%clk 0:00:11.5]} 46. Kc6 {[%clk 0:01:04.5]} 46... Bh4 {[%clk 0:00:07.3]}
47. e7 {[%clk 0:01:03]} 47... Bxe7 {[%clk 0:00:06.9]} 48. Bxe7 {[%clk
0:01:03.9]} 48... Kb8 {[%clk 0:00:07.8]} 49. Bd6+ {[%clk 0:01:02.8]} 49... Ka7
{[%clk 0:00:07.9]} 50. b4 {[%clk 0:01:02.7]} 50... Ka6 {[%clk 0:00:07.8]} 51.
b5+ {[%clk 0:01:02.6]} 51... Ka7 {[%clk 0:00:08.4]} 52. b6+ {[%clk 0:01:02.7]}
52... Ka6 {[%clk 0:00:07.5]} 53. b7 {[%clk 0:01:02.6]} 53... Ka5 {[%clk
0:00:07.7]} 54. b8=Q {[%clk 0:01:02.4]} 54... Ka4 {[%clk 0:00:08.6]} 55. Qb4#
{[%clk 0:01:02.1]} 1-0